[Event "Romanian-ch Youth Open U10 2024"]
[Site "Eforie Nord"]
[Date "2024.04.18"]
[Round "8.4"]
[White "Mironescu, Stefan"]
[Black "Rosca, Dragos-Ioan"]
[Result "0-1"]
[ECO "B13"]
[WhiteElo "1604"]
[BlackElo "1557"]
[Annotator "NA RC COMBH"]
[PlyCount "116"]
[EventDate "2024.04.10"]
[EventType "swiss"]
[EventCountry "ROU"]
[SourceTitle "playchess.com"]
[Source "ChessBase"]
[SourceQuality "1"]
[TimeControl "5400+30"]

1. e4 {[%emt 0:00:04]} c6 {[%emt 0:00:05]} 2. d4 {[%emt 0:00:12]} d5 {[%emt 0:00:03]} 3. exd5 {[%emt 0:00:15]} cxd5 {[%emt 0:00:05]} 4. Bd3 {[%emt 0:00:16]} Nc6 {[%emt 0:00:07]} 5. c3 {[%emt 0:00:10]} Nf6 {[%emt 0:00:10]} 6. Nf3 {[%emt 0:00:17]} Bg4 {[%emt 0:00:04]} 7. O-O {[%emt 0:00:24]} e6 {[%emt 0:00:06]} 8. Bf4 {[%emt 0:00:18]} Bd6 {[%emt 0:00:05]} 9. Bxd6 {[%emt 0:00:16]} Qxd6 {[%emt 1:34:15]} 10. Nbd2 {[%emt 0:00:24]} O-O {[%emt 0:00:00]} 11. h3 {[%emt 0:00:21]} Bh5 {[%emt 0:00:00]} 12. Re1 {[%emt 0:00:34]} a6 {[%emt 0:00:00]} 13. a4 {[%emt 0:00:10]} Rab8 {[%emt 0:00:00]} 14. Qe2 {[%emt 0:00:41]} Rfc8 {[%emt 0:00:00]} 15. g4 {[%emt 0:12:21]} Bg6 {[%emt 0:00:00]} 16. Bxg6 {[%emt 0:00:14]} hxg6 {[%emt 0:00:00]} 17. Ne5 {[%emt 0:00:13]} Nd7 {[%emt 0:00:00]} 18. Nxd7 {[%emt 0:00:21]} Qxd7 {[%emt 0:00:00]} 19. Nf3 {[%emt 0:00:19]} b5 {[%emt 0:00:00]} 20. Kg2 {[%emt 0:10:03]} Qb7 {[%emt 0:00:00]} 21. axb5 {[%emt 0:06:29]} axb5 {[%emt 0:00:00]} 22. b4 {[%emt 0:00:44]} Nd8 {[%emt 0:00:00]} 23. Rec1 {[%emt 0:00:33]} Ra8 {[%emt 0:00:00]} 24. Rxa8 {[%emt 0:01:30]} Rxa8 {[%emt 0:07:30]} 25. Ne5 {[%emt 0:01:05]} Ra3 {[%emt 0:00:00]} 26. Nd3 {[%emt 0:00:54]} Qc6 {[%emt 0:00:00]} 27. Qb2 {[%emt 0:04:19]} Qa6 {[%emt 0:00:00]} 28. Nc5 {[%emt 0:01:16]} Qa8 {[%emt 0:00:00]} 29. Kg1 {[%emt 0:01:04]} Ra2 {[%emt 0:00:00]} 30. Qb3 {[%emt 0:02:06]} Qa3 {[%emt 0:00:00]} 31. Qxa3 {[%emt 0:01:11]} Rxa3 {[%emt 0:00:00]} 32. Kg2 {[%emt 0:00:46]} Kf8 {[%emt 0:00:00]} 33. f4 {[%emt 0:01:03]} Ke7 {[%emt 0:00:00]} 34. Rc2 {[%emt 0:05:56]} Kd6 {[%emt 0:00:00]} 35. Rb2 {[%emt 0:06:19]} Rxc3 {[%emt 0:00:00]} 36. Ra2 {[%emt 0:00:22]} Nc6 {[%emt 0:00:00]} 37. Ra6 {[%emt 0:02:51]} Rc4 {[%emt 0:00:00]} 38. Nd3 {[%emt 0:00:33]} Kc7 {[%emt 0:00:00]} 39. Ne5 {[%emt 0:00:25]} Nxe5 {[%emt 0:00:00]} 40. dxe5 {[%emt 0:00:13]} Rxf4 {[%emt 0:00:00]} 41. Kg3 {[%emt 0:00:09]} Rxb4 {[%emt 0:00:00]} 42. Ra7+ {[%emt 0:00:11]} Kc6 {[%emt 0:00:00]} 43. Rxf7 {[%emt 0:00:14]} d4 {[%emt 0:00:00]} 44. Rxg7 {[%emt 0:00:21]} d3 {[%emt 0:00:00]} 45. Rxg6 {[%emt 0:00:21]} d2 {[%emt 0:00:00]} 46. Rxe6+ {[%emt 0:00:10]} Kc5 {[%emt 0:00:00]} 47. Rd6 {[%emt 0:00:14]} Rd4 {[%emt 0:00:00]} 48. Kf2 {[%emt 0:00:36]} Rxd6 {[%emt 0:00:00]} 49. exd6 {[%emt 0:00:09]} d1=Q {[%emt 0:00:00]} 50. g5 {[%emt 0:00:21]} Kxd6 {[%emt 0:00:00]} 51. g6 {[%emt 0:00:12]} Qd2+ {[%emt 0:00:00]} 52. Kg1 {[%emt 0:00:17]} Qg5+ {[%emt 0:00:00]} 53. Kh1 {[%emt 0:00:16]} Qxg6 {[%emt 0:00:00]} 54. h4 {[%emt 0:00:06]} Qg4 {[%emt 0:00:00]} 55. h5 {[%emt 0:00:09]} Ke5 {[%emt 0:00:00]} 56. h6 {[%emt 0:00:09]} Kf4 {[%emt 0:00:00]} 57. h7 {[%emt 0:00:08]} Kf3 {[%emt 0:00:00]} 58. h8=Q {[%emt 0:00:10]} Qg2# {[%emt 0:00:00]} 0-1

[Event "Romanian-ch Youth Open U10 2024"]
[Site "Eforie Nord"]
[Date "2024.04.19"]
[Round "9.1"]
[White "Larion, Iustin"]
[Black "Simu, Alexandru"]
[Result "1-0"]
[ECO "D00"]
[WhiteElo "1743"]
[BlackElo "1445"]
[Annotator "NA RC COMBH"]
[PlyCount "73"]
[EventDate "2024.04.10"]
[EventType "swiss"]
[EventCountry "ROU"]
[SourceTitle "playchess.com"]
[Source "ChessBase"]
[SourceQuality "1"]
[TimeControl "5400+30"]

1. d4 {[%emt 0:00:04]} Nf6 {[%emt 0:00:24]} 2. Bg5 {[%emt 0:00:09]} Ne4 {[%emt 0:05:35]} 3. Bf4 {[%emt 0:00:08]} e6 {[%emt 0:00:52]} 4. e3 {[%emt 0:09:36]} d5 {[%emt 0:03:50]} 5. Bd3 {[%emt 0:00:06]} Nf6 {[%emt 0:00:31]} 6. Nd2 {[%emt 1:23:27]} Be7 {[%emt 0:01:03]} 7. Bg5 {[%emt 0:00:00]} O-O {[%emt 0:00:56]} 8. f4 {[%emt 0:00:00]} b6 {[%emt 0:01:27]} 9. Ngf3 {[%emt 0:00:00]} Ba6 {[%emt 0:00:31]} 10. Bxa6 {[%emt 0:00:00]} Nxa6 {[%emt 0:00:06]} 11. O-O {[%emt 0:00:00]} c5 {[%emt 0:01:41]} 12. c3 {[%emt 0:00:00]} Rb8 {[%emt 0:04:21]} 13. Ne5 {[%emt 0:00:00]} Ne8 {[%emt 0:04:46]} 14. Bxe7 {[%emt 0:00:00]} Qxe7 {[%emt 0:00:12]} 15. Nc6 {[%emt 0:00:00]} Qd6 {[%emt 0:00:49]} 16. Nxb8 {[%emt 0:00:00]} Qxb8 {[%emt 0:00:13]} 17. Qf3 {[%emt 0:00:00]} Nd6 {[%emt 0:00:58]} 18. g4 {[%emt 0:00:00]} Qd8 {[%emt 0:03:56]} 19. Kh1 {[%emt 0:00:00]} Qe7 {[%emt 0:06:57]} 20. Rg1 {[%emt 0:00:00]} cxd4 {[%emt 0:02:01]} 21. exd4 {[%emt 0:00:00]} b5 {[%emt 0:01:44]} 22. a3 {[%emt 0:00:00]} f6 {[%emt 0:01:51]} 23. f5 {[%emt 0:00:00]} Nc7 {[%emt 0:02:59]} 24. fxe6 {[%emt 0:00:00]} Qxe6 {[%emt 0:00:24]} 25. Rae1 {[%emt 0:00:00]} Qd7 {[%emt 0:00:39]} 26. Nb3 {[%emt 0:00:00]} Ne4 {[%emt 0:03:28]} 27. Nc5 {[%emt 0:00:00]} Nxc5 {[%emt 0:02:14]} 28. dxc5 {[%emt 0:00:00]} Ne6 {[%emt 0:00:39]} 29. Rd1 {[%emt 0:00:00]} Rd8 {[%emt 0:01:58]} 30. Rd2 {[%emt 0:00:00]} Ng5 {[%emt 0:01:44]} 31. Qg2 {[%emt 0:00:00]} Ne4 {[%emt 0:01:51]} 32. Rd4 {[%emt 0:00:00]} Nxc5 {[%emt 0:02:11]} 33. Rgd1 {[%emt 0:00:00]} Qe7 {[%emt 0:02:29]} 34. Rxd5 {[%emt 0:00:00]} Rxd5 {[%emt 0:00:09]} 35. Qxd5+ {[%emt 0:00:00]} Ne6 {[%emt 0:00:14]} 36. Re1 {[%emt 0:00:00]} Kf7 {[%emt 0:00:09]} 37. b3 {[%emt 0:00:00]} 1-0

[Event "Romanian-ch Youth Open U10 2024"]
[Site "Eforie Nord"]
[Date "2024.04.19"]
[Round "9.2"]
[White "Kovacs, Balazs"]
[Black "Cazacu, Iustin-Nicolas"]
[Result "0-1"]
[ECO "B32"]
[WhiteElo "1866"]
[BlackElo "1857"]
[Annotator "NA RC COMBH"]
[PlyCount "120"]
[EventDate "2024.04.10"]
[EventType "swiss"]
[EventCountry "ROU"]
[SourceTitle "playchess.com"]
[Source "ChessBase"]
[SourceQuality "1"]
[TimeControl "5400+30"]

1. e4 {[%emt 0:00:00]} c5 {[%emt 0:00:58]} 2. Nf3 {[%emt 0:00:00]} Nc6 {[%emt 0:00:30]} 3. d4 {[%emt 0:00:25]} cxd4 {[%emt 0:00:30]} 4. Nxd4 {[%emt 0:00:30]} e5 {[%emt 0:00:30]} 5. Nb5 {[%emt 0:00:30]} d6 {[%emt 0:00:30]} 6. N1c3 {[%emt 0:00:30]} a6 {[%emt 0:00:30]} 7. Na3 {[%emt 0:00:30]} Be7 {[%emt 0:00:30]} 8. Nc4 {[%emt 0:00:30]} b5 {[%emt 0:00:30]} 9. Ne3 {[%emt 0:00:30]} Nf6 {[%emt 0:00:30]} 10. Bd3 {[%emt 0:00:30]} Nb4 {[%emt 0:00:30]} 11. Be2 {[%emt 0:00:30]} O-O {[%emt 0:00:30]} 12. a3 {[%emt 0:00:30]} Nc6 {[%emt 0:00:30]} 13. O-O {[%emt 0:00:30]} Nd4 {[%emt 0:00:30]} 14. Ned5 {[%emt 0:00:30]} Nxd5 {[%emt 0:00:30]} 15. Nxd5 {[%emt 0:00:30]} Bg5 {[%emt 0:00:30]} 16. Bxg5 {[%emt 0:00:30]} Qxg5 {[%emt 0:00:30]} 17. Kh1 {[%emt 0:00:30]} Bb7 {[%emt 0:00:30]} 18. f4 $11 {[%emt 0:00:30]} Qd8 19. c3 Ne6 20. g3 exf4 21. gxf4 Nc5 22. Bf3 Qh4 23. e5 dxe5 24. fxe5 Rad8 25. Qd4 Qxd4 26. cxd4 Bxd5 27. Bxd5 Rxd5 28. dxc5 Rxc5 29. Rfe1 Re8 30. Rad1 g6 31. e6 Rxe6 32. Rxe6 fxe6 33. Rd6 a5 34. Rxe6 Rc1+ 35. Kg2 Rc2+ 36. Kg3 Rxb2 37. Rb6 Rb3+ 38. Kg2 Kg7 39. Kf2 h5 40. Ke2 Kh6 41. h4 b4 42. axb4 Rxb4 43. Ra6 a4 44. Kf3 Rxh4 45. Kg2 Rb4 46. Kh3 Kg5 47. Ra5+ {[%emt 0:22:25]} Kf4 {[%emt 0:23:58]} 48. Kh4 {[%emt 0:00:30]} Kf3+ {[%emt 0:00:30]} 49. Kh3 {[%emt 0:00:30]} Rg4 {[%emt 0:00:30]} 50. Kh2 {[%emt 0:00:30]} Ke3 {[%emt 0:00:30]} 51. Rd5 {[%emt 0:00:30]} g5 {[%emt 0:00:30]} 52. Kh3 {[%emt 0:00:30]} a3 {[%emt 0:00:30]} 53. Ra5 {[%emt 0:00:30]} Kf2 {[%emt 0:00:30]} 54. Rf5+ {[%emt 0:00:30]} Rf4 {[%emt 0:00:30]} 55. Rxg5 {[%emt 0:00:30]} Ra4 {[%emt 0:00:30]} 56. Rg2+ {[%emt 0:00:30]} Ke3 {[%emt 0:00:30]} 57. Rg3+ {[%emt 0:00:30]} Kf4 {[%emt 0:00:30]} 58. Rg2 {[%emt 0:00:30]} a2 {[%emt 0:00:30]} 59. Rxa2 {[%emt 0:00:30]} Rxa2 {[%emt 0:00:30]} 60. Kh4 {[%emt 0:00:30]} Rh2# {[%emt 0:00:30]} 0-1

[Event "Romanian-ch Youth Open U10 2024"]
[Site "Eforie Nord"]
[Date "2024.04.19"]
[Round "9.3"]
[White "Rosca, Dragos-Ioan"]
[Black "Mistrekov, Dobrynia"]
[Result "1-0"]
[ECO "B20"]
[WhiteElo "1557"]
[BlackElo "1562"]
[Annotator "NA RC COMBH"]
[PlyCount "59"]
[EventDate "2024.04.10"]
[EventType "swiss"]
[EventCountry "ROU"]
[SourceTitle "playchess.com"]
[Source "ChessBase"]
[SourceQuality "1"]
[TimeControl "5400+30"]

1. e4 {[%emt 0:00:01]} c5 {[%emt 0:00:13]} 2. b4 {[%emt 1:31:29]} cxb4 {[%emt 0:00:35]} 3. d4 {[%emt 0:00:00]} d6 {[%emt 0:00:17]} 4. Bd3 {[%emt 0:00:00]} Nf6 {[%emt 0:01:31]} 5. a3 {[%emt 0:00:00]} Nbd7 {[%emt 0:00:26]} 6. axb4 {[%emt 0:00:00]} g6 {[%emt 0:02:00]} 7. f4 {[%emt 0:00:00]} e6 {[%emt 0:03:55]} 8. c3 {[%emt 0:00:00]} Bg7 {[%emt 0:00:22]} 9. Nf3 {[%emt 0:00:00]} O-O {[%emt 0:01:15]} 10. O-O {[%emt 0:00:00]} b6 {[%emt 0:00:38]} 11. Na3 {[%emt 0:00:00]} Bb7 {[%emt 0:00:26]} 12. Qe2 {[%emt 0:00:00]} d5 {[%emt 0:00:54]} 13. e5 {[%emt 0:00:00]} Ne8 {[%emt 1:24:28]} 14. g4 {[%emt 0:00:00]} a6 {[%emt 0:00:00]} 15. f5 {[%emt 0:00:00]} Nc7 {[%emt 0:00:00]} 16. f6 {[%emt 0:00:00]} Bh8 {[%emt 0:00:00]} 17. Bh6 {[%emt 0:00:00]} Re8 {[%emt 0:00:00]} 18. Nh4 {[%emt 0:00:00]} Nf8 {[%emt 0:00:00]} 19. Qc2 {[%emt 0:00:00]} Qd7 {[%emt 0:00:00]} 20. Rf3 {[%emt 0:00:00]} Nb5 {[%emt 0:00:00]} 21. Nxb5 {[%emt 0:00:00]} axb5 {[%emt 0:00:00]} 22. Raf1 {[%emt 0:00:00]} Bc6 {[%emt 0:00:00]} 23. Bxf8 {[%emt 0:00:00]} Kxf8 {[%emt 0:00:00]} 24. Bxg6 {[%emt 0:00:00]} fxg6 {[%emt 0:00:00]} 25. Nxg6+ {[%emt 0:00:00]} Kf7 {[%emt 0:00:00]} 26. Rh3 {[%emt 0:00:00]} Kg8 {[%emt 0:00:00]} 27. f7+ {[%emt 0:00:00]} Kg7 {[%emt 0:07:00]} 28. fxe8=Q {[%emt 0:13:00]} Qxe8 {[%emt 0:00:00]} 29. Nf8 {[%emt 0:00:00]} h6 {[%emt 0:00:00]} 30. Qh7# {[%emt 0:00:00]} 1-0

[Event "Romanian-ch Youth Open U10 2024"]
[Site "Eforie Nord"]
[Date "2024.04.19"]
[Round "9.4"]
[White "Pasca, Alexandru-Daniel"]
[Black "Balan, Vladimir"]
[Result "1-0"]
[ECO "B22"]
[WhiteElo "1623"]
[BlackElo "1628"]
[Annotator "NA RC COMBH"]
[PlyCount "93"]
[EventDate "2024.04.10"]
[EventType "swiss"]
[EventCountry "ROU"]
[SourceTitle "playchess.com"]
[Source "ChessBase"]
[SourceQuality "1"]
[TimeControl "5400+30"]

1. e4 {[%emt 0:00:02]} c5 {[%emt 0:00:15]} 2. c3 {[%emt 0:00:03]} d5 {[%emt 0:00:06]} 3. exd5 {[%emt 0:00:07]} Qxd5 {[%emt 0:00:10]} 4. d4 {[%emt 0:00:11]} Nf6 {[%emt 0:00:30]} 5. Nf3 {[%emt 0:00:50]} Nc6 {[%emt 0:00:39]} 6. Be2 {[%emt 0:00:20]} e6 {[%emt 0:00:37]} 7. O-O {[%emt 0:00:11]} Be7 {[%emt 0:00:24]} 8. Bd3 {[%emt 0:00:57]} O-O {[%emt 0:00:59]} 9. Bc2 {[%emt 0:01:09]} b6 {[%emt 0:03:38]} 10. a3 {[%emt 0:02:03]} Bb7 {[%emt 0:00:18]} 11. Qd3 {[%emt 0:01:28]} Rad8 {[%emt 0:01:41]} 12. Bg5 {[%emt 0:03:29]} g6 {[%emt 0:02:38]} 13. Rd1 {[%emt 0:03:29]} cxd4 {[%emt 0:02:34]} 14. cxd4 {[%emt 0:00:27]} Nb8 {[%emt 0:08:24]} 15. Nc3 {[%emt 0:01:07]} Qc6 {[%emt 0:01:27]} 16. Bh6 {[%emt 0:00:50]} Rfe8 {[%emt 0:00:20]} 17. Ba4 {[%emt 0:00:15]} Qc8 {[%emt 0:03:18]} 18. Bxe8 {[%emt 0:00:17]} Rxe8 {[%emt 0:00:11]} 19. Rac1 {[%emt 0:23:00]} Qd7 {[%emt 0:00:30]} 20. Ne5 {[%emt 0:01:36]} Qd8 {[%emt 0:00:51]} 21. Qe3 {[%emt 0:06:03]} Na6 {[%emt 0:07:52]} 22. Qf4 {[%emt 0:10:45]} Nc7 {[%emt 0:04:07]} 23. f3 {[%emt 0:04:09]} Bd6 {[%emt 0:02:28]} 24. Bg5 {[%emt 0:08:20]} Be7 {[%emt 0:01:53]} 25. h3 {[%emt 0:14:31]} Ncd5 {[%emt 0:01:50]} 26. Nxd5 {[%emt 0:00:18]} Nxd5 {[%emt 0:00:15]} 27. Qxf7+ {[%emt 0:00:36]} Kh8 {[%emt 0:00:10]} 28. Qxe6 {[%emt 0:02:53]} Rf8 {[%emt 0:01:34]} 29. Bxe7 {[%emt 0:01:40]} Qxe7 {[%emt 0:00:16]} 30. Qxe7 {[%emt 0:00:07]} Nxe7 {[%emt 0:00:06]} 31. Rc7 {[%emt 0:00:08]} Nd5 {[%emt 0:00:53]} 32. Rxb7 {[%emt 0:00:43]} Ne3 {[%emt 0:00:12]} 33. Rc1 {[%emt 0:00:49]} Nd5 {[%emt 0:00:18]} 34. Rxa7 {[%emt 0:00:22]} Kg8 {[%emt 0:00:21]} 35. Rd7 {[%emt 0:01:09]} Nf4 {[%emt 0:00:25]} 36. Rcc7 {[%emt 0:00:26]} Ne6 {[%emt 0:00:26]} 37. Rb7 {[%emt 0:00:18]} Rd8 {[%emt 0:01:04]} 38. Rxd8+ {[%emt 0:00:09]} Nxd8 {[%emt 0:00:06]} 39. Rxb6 {[%emt 0:00:09]} Kg7 {[%emt 0:00:23]} 40. a4 {[%emt 0:00:14]} g5 {[%emt 0:00:09]} 41. a5 {[%emt 0:00:06]} g4 {[%emt 0:00:11]} 42. a6 {[%emt 0:00:14]} g3 {[%emt 0:00:05]} 43. a7 {[%emt 0:00:05]} h5 {[%emt 0:00:05]} 44. a8=Q {[%emt 0:00:06]} h4 {[%emt 0:00:14]} 45. Qa7+ {[%emt 0:00:04]} Nf7 {[%emt 0:00:13]} 46. Qxf7+ {[%emt 0:00:06]} Kh8 {[%emt 0:00:03]} 47. Rb8# {[%emt 0:00:07]} 1-0